[Event "9. Korbacher Open 2017"]
[Site "Korbach"]
[Date "2017.10.21"]
[Round "5"]
[White "Mohammadi, Sholeh"]
[Black "Rehbein, Ullrich"]
[Result "0-1"]
[ECO "A16"]
[WhiteElo "1190"]
[BlackElo "1778"]
[Annotator "NA"]
[PlyCount "114"]
[EventDate "2017.??.??"]
[EventType "swiss"]
[EventCountry "GER"]
[SourceTitle "playchess.com"]
[Source "ChessBase"]
[SourceQuality "1"]
[TimeControl "40/5400+30:1800+30"]

1. c4 {[%emt 0:00:00]} Nf6 {[%emt 0:05:35]} 2. Nc3 {[%emt 0:00:00]} g6 {[%emt 0:00:09]} 3. f4 Bg7 {[%emt 0:00:59]} 4. Nf3 {[%emt 0:00:26]} O-O {[%emt 0:00:44]} 5. e4 {[%emt 0:02:42]} d6 {[%emt 0:01:13]} 6. d4 {[%emt 0:01:30]} c5 {[%emt 0:01:33]} 7. Be3 {[%emt 0:03:10]} Ng4 {[%emt 0:02:40]} 8. Bg1 {[%emt 0:02:45]} cxd4 {[%emt 0:05:02]} 9. Nxd4 {[%emt 0:01:05]} Nc6 {[%emt 0:05:16]} 10. Nxc6 {[%emt 0:01:10]} bxc6 {[%emt 0:00:20]} 11. Be2 {[%emt 0:07:10]} Nh6 {[%emt 0:04:16]} 12. Be3 {[%emt 0:03:16]} f5 {[%emt 0:04:29]} 13. Bf3 {[%emt 0:02:04]} fxe4 {[%emt 0:05:39]} 14. Bxe4 {[%emt 0:11:25]} Rb8 {[%emt 0:05:13]} 15. Rb1 {[%emt 0:06:25]} Rxb2 {[%emt 0:04:34]} 16. Rxb2 {[%emt 0:00:43]} Bxc3+ {[%emt 0:00:22]} 17. Rd2 {[%emt 0:01:21]} d5 {[%emt 0:03:32]} 18. O-O {[%emt 0:03:41]} Bxd2 {[%emt 0:03:09]} 19. Qxd2 {[%emt 0:01:50]} dxe4 {[%emt 0:00:53]} 20. Qxd8 {[%emt 0:00:54]} Rxd8 {[%emt 0:00:21]} 21. Bxa7 {[%emt 0:00:38]} Bf5 {[%emt 0:01:46]} 22. Bc5 {[%emt 0:05:57]} Rd2 {[%emt 0:03:50]} 23. Rf2 {[%emt 0:01:36]} Rxf2 {[%emt 0:06:22]} 24. Kxf2 e5 {[%emt 0:01:05]} 25. Kg3 {[%emt 0:04:16]} exf4+ {[%emt 0:04:39]} 26. Kxf4 Ng4 {[%emt 0:01:43]} 27. h3 {[%emt 0:02:55]} Nf6 {[%emt 0:00:28]} 28. a4 {[%emt 0:06:09]} Be6 {[%emt 0:03:46]} 29. Kg5 Nd7 {[%emt 0:01:20]} 30. Be3 {[%emt 0:09:19]} Bxc4 {[%emt 0:01:01]} 31. Kf4 {[%emt 0:01:17]} Bd3 {[%emt 0:01:30]} 32. a5 Nf6 {[%emt 0:01:14]} 33. Ke5 {[%emt 0:02:18]} Kf7 {[%emt 0:09:15]} 34. Kd6 Nd5 {[%emt 0:01:20]} 35. Bd2 {[%emt 0:06:23]} e3 {[%emt 0:01:52]} 36. Be1 {[%emt 0:02:44]} Nf4 {[%emt 0:01:42]} 37. Kxc6 Nxg2 {[%emt 0:00:36]} 38. Bg3 {[%emt 0:06:26]} e2 {[%emt 0:00:41]} 39. Kc5 {[%emt 0:01:11]} e1=Q {[%emt 0:00:53]} 40. Bxe1 Nxe1 {[%emt 0:30:15]} 41. Kd4 {[%emt 0:31:22]} g5 {[%emt 0:00:44]} 42. Ke3 {[%emt 0:01:14]} Ba6 {[%emt 0:00:29]} 43. Kf2 {[%emt 0:01:01]} Nd3+ {[%emt 0:00:31]} 44. Kg3 {[%emt 0:00:19]} h5 {[%emt 0:00:33]} 45. h4 {[%emt 0:00:21]} g4 {[%emt 0:00:41]} 46. Kh2 {[%emt 0:04:34]} Kf6 {[%emt 0:00:24]} 47. Kg3 {[%emt 0:00:11]} Kf5 {[%emt 0:00:18]} 48. Kh2 {[%emt 0:01:11]} Kf4 {[%emt 0:01:08]} 49. Kg2 {[%emt 0:00:00]} Ne1+ {[%emt 0:00:00]} 50. Kf2 {[%emt 0:00:00]} g3+ {[%emt 0:00:00]} 51. Kxe1 Ke3 {[%emt 0:00:00]} 52. Kd1 {[%emt 0:00:00]} g2 {[%emt 0:00:00]} 53. Kc2 {[%emt 0:00:00]} g1=Q {[%emt 0:00:00]} 54. Kc3 {[%emt 0:00:00]} Qc1+ {[%emt 0:00:00]} 55. Kb4 {[%emt 0:00:00]} Kd3 {[%emt 0:00:00]} 56. Kb3 {[%emt 0:00:00]} Qb1+ {[%emt 0:00:00]} 57. Ka3 {[%emt 0:00:00]} Kc3 0-1

[Event "9. Korbacher Open 2017"]
[Site "Korbach"]
[Date "2017.10.22"]
[Round "6"]
[White "Roeberg, Frank"]
[Black "Nielsen, Klaus"]
[Result "1-0"]
[ECO "B01"]
[WhiteElo "2194"]
[BlackElo "2092"]
[Annotator "NA"]
[PlyCount "55"]
[EventDate "2017.??.??"]
[EventType "swiss"]
[EventCountry "GER"]
[SourceTitle "playchess.com"]
[Source "ChessBase"]
[SourceQuality "1"]
[TimeControl "40/5400+30:1800+30"]

1. e4 {[%emt 0:00:00]} d5 {[%emt 0:00:07]} 2. exd5 {[%emt 0:00:00]} Qxd5 {[%emt 0:00:03]} 3. Nf3 {[%emt 0:00:16]} Nf6 {[%emt 0:00:37]} 4. d4 {[%emt 0:00:18]} c6 {[%emt 0:04:20]} 5. c4 {[%emt 0:00:43]} Qa5+ {[%emt 0:00:34]} 6. Nc3 {[%emt 0:00:16]} Ne4 {[%emt 0:02:18]} 7. Qb3 {[%emt 0:02:33]} Nxc3 {[%emt 0:06:59]} 8. bxc3 {[%emt 0:00:31]} g6 {[%emt 0:01:20]} 9. Bd3 {[%emt 0:03:37]} Bg7 {[%emt 0:00:14]} 10. O-O {[%emt 0:00:31]} O-O {[%emt 0:00:08]} 11. Re1 {[%emt 0:02:09]} Re8 {[%emt 0:02:06]} 12. Bf4 {[%emt 0:04:25]} Nd7 {[%emt 0:07:31]} 13. c5 $16 {[%emt 0:01:08]} Nf6 {[%emt 0:13:43]} 14. Bc4 {[%emt 0:06:19]} e6 {[%emt 0:00:25]} 15. Bf1 {[%emt 0:01:42]} b6 {[%emt 0:01:06]} 16. Bd6 {[%emt 0:02:54]} bxc5 {[%emt 0:01:06]} 17. Bxc5 {[%emt 0:04:22]} Nd7 {[%emt 0:02:13]} 18. Bb4 {[%emt 0:04:08]} Qc7 {[%emt 0:01:04]} 19. Qa3 {[%emt 0:00:53]} c5 {[%emt 0:06:31]} 20. Ba5 {[%emt 0:01:58]} Qf4 {[%emt 0:03:42]} 21. Rab1 {[%emt 0:03:19]} a6 {[%emt 0:04:50]} 22. g3 {[%emt 0:02:32]} Qd6 {[%emt 0:17:50]} 23. Bg2 {[%emt 0:03:13]} Rb8 {[%emt 0:06:18]} 24. dxc5 {[%emt 0:01:32]} Qd3 {[%emt 0:00:34]} 25. Rbd1 {[%emt 0:07:32]} Qc4 {[%emt 0:01:55]} 26. c6 {[%emt 0:00:46]} Nb6 {[%emt 0:06:58]} 27. Qd6 {[%emt 0:03:20]} Qxa2 {[%emt 0:02:59]} 28. Ra1 1-0

[Event "9. Korbacher Open 2017"]
[Site "Korbach"]
[Date "2017.10.22"]
[Round "6"]
[White "Koellner, Ruben Gideon"]
[Black "Wachsmann, Dietmar"]
[Result "1-0"]
[ECO "D00"]
[WhiteElo "2148"]
[BlackElo "1930"]
[Annotator "NA"]
[PlyCount "95"]
[EventDate "2017.??.??"]
[EventType "swiss"]
[EventCountry "GER"]
[SourceTitle "playchess.com"]
[Source "ChessBase"]
[SourceQuality "1"]
[TimeControl "40/5400+30:1800+30"]

1. d4 {[%emt 0:00:00]} d5 {[%emt 0:00:03]} 2. Bf4 {[%emt 0:00:00]} Nf6 {[%emt 0:00:42]} 3. e3 {[%emt 0:00:00]} c5 {[%emt 0:00:34]} 4. c3 {[%emt 0:00:15]} Nc6 {[%emt 0:00:33]} 5. Nd2 {[%emt 0:00:17]} Bf5 {[%emt 0:01:44]} 6. Qb3 {[%emt 0:00:57]} Qd7 {[%emt 0:05:05]} 7. Ngf3 {[%emt 0:01:41]} e6 {[%emt 0:00:57]} 8. Ne5 {[%emt 0:11:00]} Qc8 {[%emt 0:10:04]} 9. Bb5 {[%emt 0:06:14]} Nd7 {[%emt 0:06:34]} 10. Nxd7 {[%emt 0:06:17]} Qxd7 {[%emt 0:01:04]} 11. Qd1 {[%emt 0:00:57]} (11. e4 $14 Bg6 12. exd5 exd5 13. O-O) 11... Bd6 $11 {[%emt 0:03:29]} 12. Bg3 {[%emt 0:05:24]} a6 {[%emt 0:02:38]} 13. Ba4 {[%emt 0:01:21]} Rc8 {[%emt 0:01:56]} 14. Rc1 {[%emt 0:01:59]} O-O {[%emt 0:01:38]} 15. Bc2 {[%emt 0:13:55]} Bxc2 {[%emt 0:06:13]} 16. Rxc2 {[%emt 0:00:10]} cxd4 {[%emt 0:05:43]} 17. exd4 {[%emt 0:00:40]} e5 {[%emt 0:01:45]} 18. dxe5 {[%emt 0:00:57]} Bxe5 {[%emt 0:03:04]} 19. O-O {[%emt 0:03:18]} Bxg3 {[%emt 0:01:55]} 20. hxg3 {[%emt 0:00:08]} Rfd8 {[%emt 0:12:13]} 21. Nf3 {[%emt 0:01:06]} d4 {[%emt 0:04:59]} 22. Rd2 {[%emt 0:04:39]} d3 {[%emt 0:04:30]} 23. Qb1 {[%emt 0:00:27]} Qf5 {[%emt 0:03:17]} 24. Rfd1 {[%emt 0:01:39]} g6 {[%emt 0:03:21]} 25. Rxd3 {[%emt 0:01:21]} Rxd3 {[%emt 0:00:21]} 26. Qxd3 {[%emt 0:00:20]} Rd8 {[%emt 0:00:34]} 27. Qe2 {[%emt 0:00:33]} Rxd1+ {[%emt 0:01:26]} 28. Qxd1 {[%emt 0:00:02]} Qb5 {[%emt 0:00:13]} 29. Qb3 {[%emt 0:03:13]} Qxb3 {[%emt 0:03:21]} 30. axb3 {[%emt 0:00:02]} Kg7 {[%emt 0:00:17]} 31. Kf1 {[%emt 0:00:12]} Kf6 {[%emt 0:01:16]} 32. Ke2 {[%emt 0:00:21]} h6 {[%emt 0:00:10]} 33. Kd3 {[%emt 0:00:44]} Ke6 {[%emt 0:04:06]} 34. Nd4+ {[%emt 0:02:48]} Kd5 {[%emt 0:00:22]} 35. Nxc6 {[%emt 0:00:18]} bxc6 {[%emt 0:00:06]} 36. b4 {[%emt 0:00:40]} g5 {[%emt 0:01:51]} 37. g4 {[%emt 0:05:51]} Ke5 {[%emt 0:02:55]} 38. Ke3 {[%emt 0:02:10]} f5 {[%emt 0:01:37]} 39. f3 {[%emt 0:01:04]} f4+ {[%emt 0:01:50]} 40. Kd3 {[%emt 0:00:12]} Kd5 {[%emt 0:30:23]} 41. c4+ {[%emt 0:31:17]} Ke5 {[%emt 0:00:09]} 42. b3 {[%emt 0:00:54]} Ke6 {[%emt 0:00:00]} 43. Ke4 {[%emt 0:00:00]} Kd6 {[%emt 0:00:00]} 44. Kd4 {[%emt 0:00:00]} Kd7 {[%emt 0:00:00]} 45. Kc5 {[%emt 0:00:00]} Kc7 {[%emt 0:00:00]} 46. b5 {[%emt 0:00:00]} axb5 {[%emt 0:00:00]} 47. cxb5 {[%emt 0:00:00]} cxb5 {[%emt 0:00:00]} 48. Kxb5 {[%emt 0:00:00]} 1-0

[Event "9. Korbacher Open 2017"]
[Site "Korbach"]
[Date "2017.10.22"]
[Round "6"]
[White "Trunz, Elena"]
[Black "Van der Meiden, Dirk"]
[Result "1-0"]
[ECO "B13"]
[WhiteElo "2127"]
[BlackElo "1958"]
[Annotator "NA"]
[PlyCount "97"]
[EventDate "2017.??.??"]
[EventType "swiss"]
[EventCountry "GER"]
[SourceTitle "playchess.com"]
[Source "ChessBase"]
[SourceQuality "1"]
[TimeControl "40/5400+30:1800+30"]

1. e4 {[%emt 0:07:57]} c6 {[%emt 0:00:10]} 2. d4 {[%emt 0:00:10]} d5 {[%emt 0:00:02]} 3. exd5 {[%emt 0:00:20]} cxd5 {[%emt 0:00:07]} 4. c4 {[%emt 0:00:22]} Nf6 {[%emt 0:00:35]} 5. Nc3 {[%emt 0:00:54]} Nc6 {[%emt 0:00:45]} 6. cxd5 {[%emt 0:06:59]} Nxd5 {[%emt 0:00:14]} 7. Nf3 {[%emt 0:07:36]} e6 {[%emt 0:06:27]} 8. Bd3 {[%emt 0:03:42]} Be7 {[%emt 0:02:30]} 9. O-O {[%emt 0:00:45]} O-O {[%emt 0:00:13]} 10. a3 {[%emt 0:05:17] LiveBook: 315 Games} h6 {[%emt 0:02:45] D42: Queen's Gambit Declined: Semi-Tarrasch: 5 cxd5 Nxd5 6 e3 Nc6 7 Bd3} (10... b6 11. Nxd5 Qxd5 12. Qc2 Bb7 13. Bxh7+ Kh8 14. Be4 Nxd4 15. Bxd5 Nxc2 16. Bxb7 Nxa1 17. Bxa8 Rxa8 18. Bg5 f6 19. Rxa1 fxg5 20. Rc1 {½-½ (33) Giri,A (2764)-So,W (2789) Leuven 2017}) 11. Bc2 {[%emt 0:02:09]} Nf6 {[%emt 0:04:48]} 12. Qd3 {[%emt 0:05:08]} Qa5 {[%emt 0:11:39]} 13. Bd2 $146 {[%emt 0:14:27]} ({Predecessor:} 13. Bf4 Rd8 14. d5 Rxd5 15. Nxd5 Qxd5 16. Rfd1 Qxd3 17. Rxd3 Nd5 18. Bg3 Bf6 19. Rb1 {1-0 (43) Prudnikova,S (2426)-Mar,K (2236) Istanbul 2003}) 13... Qh5 {[%emt 0:03:05]} 14. Rfe1 {[%emt 0:02:32]} Rd8 {[%emt 0:02:44]} 15. Ne4 {[%emt 0:09:38]} b6 {[%emt 0:17:33]} 16. Nxf6+ {[%emt 0:07:11]} Bxf6 {[%emt 0:01:42]} 17. Qh7+ {[%emt 0:00:38]} Kf8 {[%emt 0:00:03]} 18. Be4 {[%emt 0:00:27]} Bb7 $18 {[%emt 0:07:56]} 19. d5 {[%emt 0:02:41]} Rxd5 {[%emt 0:00:40]} 20. Bxd5 {[%emt 0:00:26]} Qxd5 {[%emt 0:00:14]} 21. Rad1 {[%emt 0:02:11]} Qb5 {[%emt 0:07:47]} 22. Bc3 {[%emt 0:01:28]} Bxc3 {[%emt 0:03:34]} 23. bxc3 {[%emt 0:00:04]} Ne7 {[%emt 0:01:49]} 24. Ne5 {[%emt 0:00:56]} Bc6 {[%emt 0:02:19]} 25. Rd6 {[%emt 0:06:44]} Be8 {[%emt 0:00:31]} 26. Qd3 {[%emt 0:05:45]} Rc8 {[%emt 0:08:07]} 27. Rd8 {[%emt 0:01:19]} Qxd3 {[%emt 0:02:45]} 28. Rxd3 {[%emt 0:00:03]} Bb5 {[%emt 0:00:51]} 29. c4 {[%emt 0:00:44]} Ba6 {[%emt 0:04:16]} 30. Red1 {[%emt 0:01:15]} Nc6 {[%emt 0:00:36]} 31. Nxc6 {[%emt 0:00:24]} Rxc6 {[%emt 0:00:22]} 32. Rd8+ {[%emt 0:01:15]} Ke7 {[%emt 0:00:02]} 33. R1d7+ {[%emt 0:00:47]} Kf6 {[%emt 0:00:03]} 34. Rf8 {[%emt 0:00:06]} Bxc4 {[%emt 0:02:28]} 35. Rfxf7+ {[%emt 0:00:11]} Ke5 {[%emt 0:00:14]} 36. Rxa7 {[%emt 0:01:24]} g6 {[%emt 0:00:44]} 37. f3 {[%emt 0:00:38]} b5 {[%emt 0:00:25]} 38. Rfd7 {[%emt 0:00:55]} Bd5 {[%emt 0:00:54]} 39. Rdc7 {[%emt 0:00:06]} Rb6 {[%emt 0:00:16]} 40. Rg7 {[%emt 0:00:58]} Kf6 {[%emt 0:30:23]} 41. Raf7+ {[%emt 0:31:03]} Kg5 {[%emt 0:01:25]} 42. f4+ {[%emt 0:00:00]} Kh5 {[%emt 0:00:00]} 43. g4+ {[%emt 0:00:00]} Kxg4 {[%emt 0:00:00]} 44. Rxg6+ {[%emt 0:00:00]} Kf3 {[%emt 0:00:00]} 45. f5 {[%emt 0:00:00]} Ke4 {[%emt 0:00:00]} 46. Rxh6 {[%emt 0:00:00]} b4 {[%emt 0:00:00]} 47. axb4 {[%emt 0:00:00]} Ke5 {[%emt 0:00:00]} 48. Rh4 {[%emt 0:00:00]} exf5 {[%emt 0:00:00]} 49. Re7+ {[%emt 0:00:00]} 1-0

[Event "9. Korbacher Open 2017"]
[Site "Korbach"]
[Date "2017.10.22"]
[Round "6"]
[White "Hansen, Flemming Haupt"]
[Black "Hagedorn, Alfons"]
[Result "1-0"]
[ECO "B50"]
[WhiteElo "2121"]
[BlackElo "1923"]
[Annotator "NA"]
[PlyCount "67"]
[EventDate "2017.??.??"]
[EventType "swiss"]
[EventCountry "GER"]
[SourceTitle "playchess.com"]
[Source "ChessBase"]
[SourceQuality "1"]
[TimeControl "40/5400+30:1800+30"]

1. e4 {[%emt 0:00:00]} c5 {[%emt 0:00:16]} 2. Nf3 {[%emt 0:00:00]} d6 {[%emt 0:00:10]} 3. c3 {[%emt 0:01:26]} Nf6 {[%emt 0:01:21]} 4. Be2 {[%emt 0:00:19]} g6 {[%emt 0:00:29]} 5. O-O {[%emt 0:00:25]} Bg7 {[%emt 0:00:06]} 6. h3 {[%emt 0:00:49]} O-O {[%emt 0:00:09]} 7. d3 {[%emt 0:00:02]} Nc6 {[%emt 0:00:44]} 8. Re1 {[%emt 0:04:11]} h6 {[%emt 0:03:30]} 9. Bf1 {[%emt 0:01:46]} e5 {[%emt 0:01:24]} 10. Na3 {[%emt 0:02:29] B50: Sicilian: 2...d6, Miscellaneous} Nh7 $146 {[%emt 0:01:04]} ({Predecessor:} 10... Re8 11. g3 Be6 12. Bg2 Qd7 13. Kh2 d5 14. exd5 Nxd5 15. Nc4 f6 16. a4 Rad8 17. Nfd2 b6 {0-1 (44) Verducci Silvelo,S (2518)-Gronkowski,D (2384) ICCF email 2004}) 11. d4 {[%emt 0:03:52]} cxd4 {[%emt 0:03:24]} 12. cxd4 {[%emt 0:00:15]} exd4 {[%emt 0:00:14]} 13. Nb5 {[%emt 0:00:17]} Qf6 {[%emt 0:06:51]} 14. b3 {[%emt 0:10:54]} Ng5 {[%emt 0:06:42]} 15. Nxg5 {[%emt 0:02:28]} hxg5 {[%emt 0:01:23]} 16. Nc7 {[%emt 0:00:39]} Rb8 {[%emt 0:01:44]} 17. Nd5 {[%emt 0:00:25]} Qd8 {[%emt 0:01:54]} 18. Qd2 {[%emt 0:00:36]} f6 {[%emt 0:19:22]} 19. Bc4 {[%emt 0:08:45]} Be6 {[%emt 0:03:34]} 20. Bb2 {[%emt 0:03:49]} b5 {[%emt 0:02:31]} 21. Nb4 {[%emt 0:01:21]} bxc4 {[%emt 0:06:54]} 22. Nxc6 {[%emt 0:00:22]} Qb6 {[%emt 0:01:00]} 23. Nxd4 {[%emt 0:06:55]} Bf7 {[%emt 0:00:49]} 24. Re3 {[%emt 0:11:32]} Rfe8 {[%emt 0:04:25]} 25. Rd1 {[%emt 0:00:44]} g4 {[%emt 0:01:31]} 26. Qe2 {[%emt 0:03:03]} Bh6 $11 {[%emt 0:01:54]} (26... gxh3 $15 27. Rxh3 d5) 27. Rg3 {[%emt 0:00:44]} f5 {[%emt 0:00:55]} 28. hxg4 {[%emt 0:04:45]} Rxe4 {[%emt 0:00:58]} 29. Qf3 {[%emt 0:01:11]} Bd5 {[%emt 0:03:14]} 30. Nxf5 {[%emt 0:03:41]} Re1+ {[%emt 0:12:06]} 31. Rxe1 {[%emt 0:00:30]} Bxf3 {[%emt 0:00:05]} 32. Nxh6+ {[%emt 0:00:12]} Kh7 {[%emt 0:00:03]} 33. Re7+ {[%emt 0:00:15]} Kxh6 {[%emt 0:00:26]} 34. g5+ {[%emt 0:00:08]} 1-0

[Event "9. Korbacher Open 2017"]
[Site "Korbach"]
[Date "2017.10.22"]
[Round "6"]
[White "Heinemann, Ernst"]
[Black "Maiwald, Harald"]
[Result "1-0"]
[ECO "B31"]
[WhiteElo "2099"]
[BlackElo "2014"]
[Annotator "NA"]
[PlyCount "109"]
[EventDate "2017.??.??"]
[EventType "swiss"]
[EventCountry "GER"]
[SourceTitle "playchess.com"]
[Source "ChessBase"]
[SourceQuality "1"]
[TimeControl "40/5400+30:1800+30"]

1. e4 {[%emt 0:00:00]} c5 {[%emt 0:00:05]} 2. Nf3 {[%emt 0:00:00]} Nc6 {[%emt 0:00:03]} 3. Bb5 {[%emt 0:00:17]} g6 {[%emt 0:00:25]} 4. O-O {[%emt 0:00:42]} Bg7 {[%emt 0:00:02]} 5. c3 {[%emt 0:00:15]} Nf6 {[%emt 0:00:20]} 6. e5 {[%emt 0:00:12]} Nd5 {[%emt 0:00:12]} 7. d4 {[%emt 0:00:12]} cxd4 {[%emt 0:00:07]} 8. cxd4 {[%emt 0:00:08]} O-O {[%emt 0:00:17]} 9. Nc3 {[%emt 0:01:32]} Nc7 {[%emt 0:00:15]} 10. Bf4 {[%emt 0:04:08]} Nxb5 {[%emt 0:15:55] LiveBook: 35 Games} 11. Nxb5 {[%emt 0:00:03]} Qb6 {[%emt 0:02:03] B31: Sicilian: 2...Nc6 3 Bb5 g6} (11... a6 12. Nc3 d6 13. exd6 exd6 14. h3 d5 15. Re1 Be6 16. Qd2 Re8 17. Re2 Qb6 18. Rae1 Nxd4 19. Nxd4 Qxd4 20. Qxd4 Bxd4 21. Nxd5 Rac8 22. Bd6 Kh8 23. Nc7 Red8 24. Nxe6 Rxd6 25. Nxd4 Rxd4 26. Re7 Kg7 27. R1e2 b5 {½-½ (27) Zvjaginsev,V (2636)-Bacrot,E (2722) Moscow 2009}) 12. a4 {[%emt 0:08:18]} a6 {[%emt 0:01:15]} 13. Na3 $146 {[%emt 0:00:24]} ({Predecessor:} 13. Nc3 Qxb2 14. Nd5 d6 15. exd6 exd6 16. Rb1 Qa2 17. Nb6 Bg4 18. Nxa8 Nxd4 19. Nb6 Ne2+ 20. Kh1 Nxf4 21. Qxd6 Ne6 22. Qd5 {½-½ (22) Schneider,D (2401)-Jianu,V (2401) Heraklio 2002}) 13... d5 {[%emt 0:06:58]} 14. exd6 {[%emt 0:02:04]} Bg4 {[%emt 0:05:19] [#]} 15. d5 $1 {[%emt 0:06:12]} Bxf3 {[%emt 0:11:28]} 16. gxf3 {[%emt 0:06:20]} exd6 {[%emt 0:10:03]} 17. dxc6 {[%emt 0:00:48]} bxc6 {[%emt 0:02:14]} 18. Rb1 {[%emt 0:08:02]} d5 {[%emt 0:01:20]} 19. b4 {[%emt 0:01:03]} Rfe8 {[%emt 0:02:06]} 20. Qd3 {[%emt 0:08:39]} Bf8 {[%emt 0:04:06]} 21. Nc2 {[%emt 0:01:22]} Rad8 {[%emt 0:02:22]} 22. Ne3 $18 {[%emt 0:10:48]} Bxb4 {[%emt 0:02:34]} 23. a5 {[%emt 0:04:12]} Qxa5 {[%emt 0:01:46]} 24. Ng4 {[%emt 0:00:55]} Re6 {[%emt 0:06:10]} 25. Nh6+ {[%emt 0:06:47]} Kf8 {[%emt 0:03:54]} 26. Qd4 {[%emt 0:02:09]} Bc3 {[%emt 0:00:39]} 27. Qa7 {[%emt 0:00:22]} Re7 {[%emt 0:08:18]} 28. Rb7 {[%emt 0:01:06]} Bb4 {[%emt 0:00:43]} 29. Bc7 {[%emt 0:02:16]} Bc5 {[%emt 0:03:46]} 30. Bxa5 {[%emt 0:01:37]} Bxa7 {[%emt 0:01:24]} 31. Rxe7 {[%emt 0:03:40]} Kxe7 {[%emt 0:00:03]} 32. Bxd8+ {[%emt 0:00:07]} Kxd8 {[%emt 0:00:16]} 33. Ra1 {[%emt 0:00:13]} Kd7 {[%emt 0:00:45]} 34. Rxa6 {[%emt 0:00:11]} Bd4 {[%emt 0:00:07]} 35. Ng4 {[%emt 0:01:30]} Kd6 {[%emt 0:01:01]} 36. Kf1 {[%emt 0:00:46]} Kc5 {[%emt 0:00:13]} 37. Ne3 {[%emt 0:01:42]} Kb5 {[%emt 0:00:22]} 38. Ra8 {[%emt 0:00:19]} Be5 {[%emt 0:00:38]} 39. h3 {[%emt 0:03:18]} d4 {[%emt 0:00:09]} 40. Re8 {[%emt 0:01:37]} f6 {[%emt 0:31:09]} 41. Ng4 {[%emt 0:30:24]} Bf4 {[%emt 0:01:35]} 42. Nxf6 {[%emt 0:00:20]} c5 {[%emt 0:00:05]} 43. Ke2 {[%emt 0:01:36]} c4 {[%emt 0:00:01]} 44. Ne4 {[%emt 0:01:05]} d3+ {[%emt 0:00:06]} 45. Kd1 {[%emt 0:00:48]} Kb4 {[%emt 0:00:41]} 46. Re7 {[%emt 0:01:18]} c3 {[%emt 0:00:12]} 47. Nxc3 {[%emt 0:05:38]} Kxc3 {[%emt 0:00:02]} 48. Rxh7 {[%emt 0:00:10]} Kd4 {[%emt 0:01:01]} 49. Rd7+ {[%emt 0:01:28]} Kc3 {[%emt 0:00:09]} 50. Rf7 {[%emt 0:04:17]} g5 {[%emt 0:01:23]} 51. h4 {[%emt 0:01:39]} Kd4 {[%emt 0:00:09]} 52. h5 {[%emt 0:00:57]} Ke5 {[%emt 0:00:13]} 53. h6 {[%emt 0:00:23]} Ke6 {[%emt 0:00:20]} 54. Rxf4 {[%emt 0:00:18]} gxf4 {[%emt 0:00:03]} 55. h7 {[%emt 0:00:07]} 1-0

[Event "9. Korbacher Open 2017"]
[Site "Korbach"]
[Date "2017.10.22"]
[Round "6"]
[White "Hoekstra, Peter"]
[Black "Dudink, Bas"]
[Result "0-1"]
[ECO "D10"]
[WhiteElo "2074"]
[BlackElo "1951"]
[Annotator "NA"]
[PlyCount "36"]
[EventDate "2017.??.??"]
[EventType "swiss"]
[EventCountry "GER"]
[SourceTitle "playchess.com"]
[Source "ChessBase"]
[SourceQuality "1"]
[TimeControl "40/5400+30:1800+30"]

1. d4 {[%emt 0:00:00]} d5 {[%emt 0:00:07]} 2. c4 {[%emt 0:00:00]} c6 {[%emt 0:00:05]} 3. Nc3 {[%emt 0:00:00]} Nf6 {[%emt 0:00:07]} 4. e3 {[%emt 0:00:10]} a6 {[%emt 0:01:08]} 5. Qc2 {[%emt 0:00:35]} g6 {[%emt 0:02:08] D10: Slav Defence: 3 cxd5 (without early Nf3) and 3 Nc3} (5... b5 6. b3 g6 7. Bd3 Bg7 8. Nf3 O-O 9. O-O Nbd7 10. Bb2 Bb7 11. h3 dxc4 12. bxc4 c5 13. Qe2 cxd4 14. exd4 bxc4 15. Bxc4 {0-1 (46) Bluebaum,M (2634)-Aronian,L (2774) Karlsruhe 2017}) 6. Nf3 {[%emt 0:00:23]} Bf5 {[%emt 0:00:35]} 7. Qb3 {[%emt 0:01:16]} Ra7 {[%emt 0:01:03] LiveBook: 5 Games} 8. Bd2 {[%emt 0:01:04]} Bg7 {[%emt 0:01:14]} 9. Be2 {[%emt 0:07:45]} O-O {[%emt 0:00:12]} 10. O-O {[%emt 0:05:49]} Ne4 $146 {[%emt 0:20:32]} ({Predecessor:} 10... dxc4 11. Bxc4 b5 12. Be2 c5 13. dxc5 Nbd7 14. Qa3 Qc7 15. b4 Ne4 16. Rfd1 {1-0 (29) Iturrizaga Bonelli,E (2652)-Asenov,P (2257) London 2016}) 11. cxd5 {[%emt 0:11:38]} Nxc3 {[%emt 0:02:35]} 12. bxc3 {[%emt 0:00:30]} cxd5 {[%emt 0:00:52]} 13. c4 {[%emt 0:02:15]} dxc4 {[%emt 0:01:24]} 14. Bxc4 {[%emt 0:00:45]} b5 {[%emt 0:06:55]} 15. Be2 {[%emt 0:00:53]} Be6 {[%emt 0:06:33]} 16. Qb2 $11 {[%emt 0:00:51]} Nc6 {[%emt 0:03:03]} 17. Rfc1 {[%emt 0:02:30]} Qb6 {[%emt 0:01:44]} 18. Rc5 {[%emt 0:03:20]} Qxc5 {[%emt 0:00:36]} 0-1

[Event "9. Korbacher Open 2017"]
[Site "Korbach"]
[Date "2017.10.22"]
[Round "6"]
[White "Koellner, Christof"]
[Black "Thomas, Ingo"]
[Result "1/2-1/2"]
[ECO "D10"]
[WhiteElo "2073"]
[BlackElo "2129"]
[Annotator "NA"]
[PlyCount "42"]
[EventDate "2017.??.??"]
[EventType "swiss"]
[EventCountry "GER"]
[SourceTitle "playchess.com"]
[Source "ChessBase"]
[SourceQuality "1"]
[TimeControl "40/5400+30:1800+30"]

{[%evp 8,31,33,-16,-2,32767,32767,35,30,36,52,32767,33,26,33,32,33,18,50,55,100,78,32767,32767,32767,51]} 1. d4 {[%emt 0:00:00]} d5 {[%emt 0:00:30]} 2. c4 {[%emt 0:00:30]} c6 {[%emt 0:00:30]} 3. cxd5 {[%emt 0:00:30]} cxd5 {[%emt 0:00:30]} 4. Nc3 {[%emt 0:00:30]} Nf6 {[%emt 0:00:30]} 5. f3 {[%emt 0:00:30] D10: Slav Defence: 3 cxd5 (without early Nf3) and 3 Nc3} (5. Bf4 Nc6 6. e3 Bf5 7. Qb3 Na5 8. Qa4+ Bd7 9. Qc2 e6 10. Bd3 Be7 11. Nf3 Nc6 12. a3 Nh5 13. Be5 f6 14. Bf4 Nxf4 15. exf4 g6 {½-½ (80) Rapport,R (2675)-Najer,E (2707) Tbilisi 2017}) 5... Nc6 {[%emt 0:19:47]} 6. e4 {[%emt 0:00:00]} e6 {[%emt 0:00:03]} 7. e5 {[%emt 0:00:00] LiveBook: 4 Partien} Nd7 {[%emt 0:00:04]} 8. f4 {[%emt 0:00:50]} f5 {[%emt 0:01:46]} 9. Nf3 {[%emt 0:05:39]} Be7 {[%emt 0:01:45]} 10. Be3 {[%emt 0:06:24]} a6 $146 {[%emt 0:00:28]} ({Predecessor:} 10... Nb6 11. b3 Bd7 12. Bd3 {½-½ (25) Wright,S-Neff,E Vancouver 2000}) 11. Rc1 {[%emt 0:01:09]} Na5 {[%emt 0:02:44]} 12. Bd3 {[%emt 0:02:09]} b5 {[%emt 0:04:16]} 13. b3 {[%emt 0:03:45]} Bb7 {[%emt 0:00:32]} 14. O-O {[%emt 0:01:02]} Nc6 {[%emt 0:12:20]} 15. Bb1 {[%emt 0:02:03]} Rc8 {[%emt 0:05:16]} 16. Ne2 $14 {[%emt 0:10:03]} Qb6 {[%emt 0:05:23]} 17. Qe1 {[%emt 0:03:19]} O-O {[%emt 0:02:15]} 18. Qg3 {[%emt 0:01:29]} Nd8 {[%emt 0:01:18]} 19. Rxc8 {[%emt 0:04:04]} Bxc8 {[%emt 0:00:03]} 20. Qh3 {[%emt 0:05:54]} Nb8 {[%emt 0:03:35]} 21. Bf2 {[%emt 0:03:21]} Nf7 {[%emt 0:02:22]} 1/2-1/2